bitfinex/quotes_SOLUSD_20260114
["timestamp","ask_amount","ask_price","bid_price","bid_amount"]
[1768358130543,3.80171778,145.54,145.5,0.66817027]
[1768358130753,17.17290014,145.58,145.51,0.66817027]
[1768358130958,12.52,145.57,145.51,0.66817027]
[1768358131160,3.80171778,145.56,145.51,0.66817027]
[1768358132161,4.24181848,145.56,145.51,0.66817027]
[1768358132369,0.099,145.55,145.51,0.66817027]
[1768358133064,7.31034048,145.56,145.51,0.66817027]
[1768358133563,11.11205826,145.56,145.52,0.66817027]
[1768358134266,7.31034048,145.56,145.52,0.66817027]
[1768358134564,11.11205826,145.56,145.52,0.66817027]
[1768358135563,4.24181848,145.56,145.52,0.66817027]
[1768358135758,0.4401007,145.56,145.52,0.66817027]
[1768358136155,23.63136699,145.57,145.53,0.72168448]
[1768358136460,11.11105729,145.58,145.54,0.72168448]
[1768358137164,7.30933951,145.58,145.54,0.72168448]
[1768358138269,0.4401007,145.58,145.54,0.72168448]
[1768358138959,0.4401007,145.58,145.51,0.72168448]
[1768358139157,4.23840747,145.54,145.49,0.72168448]
[1768358139463,4.23506435,145.52,145.48,0.72168448]
[1768358139642,4.23506435,145.52,145.46,10.87633477]
[1768358139643,0.43006997,145.5,145.46,0.92168448]
[1768358140042,0.43006997,145.5,145.46,4.72340226]
[1768358140462,0.43006997,145.5,145.46,0.92168448]
[1768358141371,0.4401007,145.53,145.49,0.72168448]
[1768358141668,0.099,145.53,145.48,3.80171778]
[1768358142147,10.77179353,145.54,145.49,0.72168448]
[1768358142349,4.23840747,145.53,145.49,0.72168448]
[1768358142848,0.43668969,145.53,145.49,0.72168448]
[1768358144359,0.43668969,145.53,145.49,7.59500429]
[1768358145453,19.3906925,145.55,145.5,0.72168448]
[1768358145454,16.76181848,145.55,145.5,0.72168448]
[1768358145652,16.76181848,145.55,145.5,4.52340226]
[1768358146076,12.9601007,145.55,145.5,4.52340226]
[1768358146260,16.76181848,145.55,145.5,11.39611196]
[1768358146462,23.63232433,145.55,145.5,11.39611196]
[1768358146772,23.63232433,145.55,145.5,7.59439418]
[1768358148976,19.83060655,145.55,145.5,7.59439418]
[1768358149277,11.11232433,145.55,145.51,0.72168448]
[1768358149458,23.63232433,145.55,145.51,0.72168448]
[1768358149778,12.9601007,145.55,145.51,0.72168448]
[1768358150076,0.4401007,145.55,145.51,0.72168448]
[1768358150453,7.31061758,145.55,145.51,0.72168448]
[1768358150651,11.11233536,145.55,145.51,0.72168448]
[1768358150947,7.31061758,145.55,145.51,0.72168448]
[1768358151169,11.11233536,145.55,145.51,0.72168448]
[1768358151346,7.31061758,145.55,145.51,0.72168448]
[1768358151774,0.4401007,145.55,145.51,0.72168448]
[1768358152354,7.31065567,145.55,145.51,0.72168448]
[1768358152556,11.11237345,145.55,145.51,0.72168448]
[1768358153869,0.099,145.54,145.51,0.72168448]
[1768358157284,0.4401007,145.56,145.52,0.72168448]
[1768358157476,12.9601007,145.57,145.53,0.72168448]
[1768358158376,0.099,145.56,145.53,0.72168448]
[1768358160172,19.38926492,145.58,145.54,0.72168448]
[1768358160468,25.43082463,145.58,145.54,0.72168448]
[1768358161190,19.38926492,145.58,145.54,0.72168448]
[1768358161365,6.86926492,145.58,145.54,0.72168448]
[1768358162778,12.52,145.59,145.55,0.72168448]
[1768358162972,12.52,145.59,145.56,0.72168448]
[1768358164286,19.38863621,145.59,145.56,0.72168448]
[1768358165981,13.25094617,145.6,145.56,0.72168448]
[1768358167001,0.099,145.59,145.55,0.68052843]
[1768358167201,0.099,145.59,145.54,13.49404317]
[1768358167584,0.099,145.59,145.47,34.5471999]
[1768358167585,5.94255971,145.57,145.48,0.68052843]
[1768358167897,5.94255971,145.56,145.52,0.68052843]
[1768358168111,5.94255971,145.57,145.52,0.68052843]
[1768358168679,5.94255971,145.57,145.5,5.94255971]
[1768358168680,5.94255971,145.57,145.51,0.68052843]
[1768358168889,5.94255971,145.57,145.53,0.68052843]
[1768358169183,12.81137513,145.59,145.54,0.68052843]
[1768358170903,5.94255971,145.58,145.53,7.55176373]
[1768358171108,5.94255971,145.58,145.54,0.68052843]
[1768358171785,5.94255971,145.57,145.54,0.68052843]
[1768358173900,5.94255971,145.57,145.53,7.55176373]
[1768358174207,5.94255971,145.57,145.54,0.68052843]
[1768358174615,5.94255971,145.57,145.53,0.68052843]
[1768358175803,6.86881542,145.59,145.53,0.68052843]
[1768358176006,5.94255971,145.57,145.53,0.68052843]
[1768358177608,5.94255971,145.57,145.55,0.67403808]
[1768358179010,5.94255971,145.57,145.53,0.67403808]
[1768358180017,5.94255971,145.57,145.54,6.8709633]
[1768358180201,5.94255971,145.57,145.55,0.67403808]
[1768358181415,5.94255971,145.59,145.56,0.67403808]
[1768358181611,5.94255971,145.59,145.55,6.87042415]
[1768358181917,5.94255971,145.59,145.56,0.67403808]
[1768358184213,12.52,145.6,145.56,0.67403808]
[1768358184416,18.46255971,145.6,145.57,0.67403808]
[1768358184718,6.86803689,145.61,145.57,0.67403808]
[1768358184924,5.94255971,145.6,145.57,0.67403808]
[1768358185300,5.94255971,145.61,145.57,0.67403808]
[1768358185805,5.94255971,145.6,145.57,0.67403808]
[1768358187517,5.94255971,145.6,145.58,0.67403808]
[1768358190826,5.94255971,145.59,145.58,0.67403808]
[1768358192508,5.94255971,145.6,145.58,0.67403808]
[1768358196425,5.94255971,145.6,145.57,6.86949236]
[1768358196629,5.94255971,145.6,145.57,7.58483437]
[1768358197620,5.94255971,145.6,145.58,0.71534201]
[1768358202334,5.94255971,145.61,145.58,0.71534201]
[1768358206942,5.94255971,145.61,145.59,0.71534201]
[1768358210249,5.94255971,145.61,145.57,6.86932739]
[1768358210436,5.94255971,145.61,145.57,7.5846694]
[1768358210743,5.94255971,145.61,145.58,6.86904535]
[1768358212348,5.94255971,145.61,145.58,0.71534201]
[1768358212646,5.94255971,145.62,145.58,0.71534201]
[1768358213749,5.94255971,145.62,145.58,7.58418767]
[1768358215654,19.38693322,145.63,145.59,0.71534201]
[1768358215832,5.94255971,145.62,145.59,0.71534201]
[1768358221356,3.8002002,145.62,145.59,0.71534201]
[1768358221839,3.8002002,145.61,145.59,0.71534201]
[1768358222041,3.8002002,145.61,145.59,0.65534205]
[1768358222466,3.8002002,145.61,145.59,0.59534209]
[1768358222959,3.8002002,145.62,145.59,0.59534209]
[1768358227145,12.52,145.63,145.6,0.72080088]
[1768358227347,3.8002002,145.64,145.61,0.72080088]
[1768358229165,10.66658041,145.64,145.61,0.72080088]
[1768358229658,10.76558041,145.64,145.61,0.72080088]
[1768358230167,6.96538021,145.64,145.61,0.72080088]
[1768358230362,3.8992002,145.64,145.61,0.72080088]
[1768358230550,3.8002002,145.64,145.61,0.72080088]
[1768358232368,6.96480376,145.65,145.61,0.72080088]
[1768358232571,3.8002002,145.63,145.61,0.72080088]
[1768358234158,29.68417953,145.66,145.6,0.72080088]
[1768358234474,3.8002002,145.64,145.61,0.72080088]
[1768358235463,3.8992002,145.64,145.61,0.72080088]
[1768358235659,0.11978992,145.63,145.6,6.86792365]
[1768358235863,3.91999012,145.63,145.6,7.58872453]
[1768358236659,0.11978992,145.63,145.6,7.58872453]
[1768358236855,3.8002002,145.63,145.6,7.58872453]
[1768358238659,0.11999992,145.64,145.6,7.58872453]
[1768358238949,3.8992002,145.63,145.6,6.86792365]
[1768358239151,3.91999012,145.62,145.58,0.68407696]
[1768358239464,3.91999012,145.62,145.58,7.55288235]
[1768358239674,3.91999012,145.62,145.59,7.55266989]
[1768358240067,0.11978992,145.62,145.59,7.55266989]
[1768358241978,6.86634423,145.64,145.6,0.68407696]
[1768358242283,3.8002002,145.63,145.6,0.68407696]
[1768358242978,3.8992002,145.63,145.6,0.68407696]
[1768358244776,0.099,145.63,145.6,0.68407696]
[1768358245083,3.8992002,145.63,145.6,0.68407696]
[1768358245992,0.11978992,145.62,145.58,0.68407696]
[1768358246174,3.92020012,145.6,145.56,0.68407696]
[1768358246356,3.8002002,145.6,145.56,0.68407696]
[1768358247460,3.8002002,145.6,145.57,0.68407696]
[1768358248555,0.099,145.61,145.57,0.68407696]
[1768358248779,3.8992002,145.61,145.57,0.68407696]
[1768358248984,3.91999012,145.6,145.56,7.55390294]
[1768358250077,3.8002002,145.6,145.57,0.68407696]
[1768358252782,6.98769287,145.61,145.57,0.68407696]
[1768358252963,3.8002002,145.6,145.57,0.68407696]
[1768358253775,10.66789315,145.61,145.57,0.68407696]
[1768358254488,6.86733032,145.62,145.58,0.68407696]
[1768358254694,3.8002002,145.61,145.58,0.68407696]
[1768358256481,6.86767227,145.61,145.58,0.68407696]
[1768358256780,10.66787247,145.61,145.58,0.68407696]
[1768358258598,10.66757457,145.62,145.58,0.68407696]
[1768358259491,3.8992002,145.65,145.58,24.0416389]
[1768358259689,0.11978992,145.64,145.59,3.8002002]
[1768358259991,0.11978992,145.64,145.59,4.47257649]
[1768358260199,3.92020012,145.65,145.61,0.67237629]
[1768358260704,3.8002002,145.65,145.61,0.67237629]
[1768358261078,10.66564603,145.66,145.61,0.67237629]
[1768358261280,3.8002002,145.65,145.61,0.67237629]
[1768358261501,10.66564603,145.66,145.61,0.67237629]
[1768358261702,6.86544583,145.66,145.61,0.67237629]
[1768358261999,10.66564603,145.66,145.61,0.67237629]
[1768358262501,0.21999992,145.68,145.62,0.67237629]
[1768358262679,3.8002002,145.67,145.62,0.67237629]
[1768358264102,3.8002002,145.67,145.63,0.67237629]
[1768358265732,3.8002002,145.66,145.63,0.67237629]
[1768358266288,3.8002002,145.67,145.63,0.67237629]
[1768358266900,3.91999012,145.67,145.63,0.67237629]
[1768358267422,10.78493414,145.67,145.63,0.67237629]
[1768358268212,3.91999012,145.67,145.63,0.67237629]
[1768358269798,10.78490256,145.67,145.63,0.67237629]
[1768358275021,3.8002002,145.66,145.63,0.67237629]
[1768358277205,3.8994081,145.66,145.62,0.67237629]
[1768358277526,3.91978429,145.65,145.62,0.67237629]
[1768358277726,3.91978429,145.65,145.6,0.67237629]
[1768358278327,3.91978429,145.65,145.61,0.67237629]
[1768358280306,3.91978429,145.65,145.61,7.53963169]
[1768358280507,3.91978429,145.65,145.62,0.67237629]
[1768358281426,6.05522495,145.65,145.62,0.67237629]
[1768358283429,6.05522495,145.65,145.62,7.53950342]
[1768358284834,0.11958409,145.65,145.62,7.53950342]
[1768358285034,6.03505253,145.64,145.6,7.55903268]
[1768358285621,6.03505253,145.64,145.61,0.69100442]
[1768358287546,0.09941167,145.64,145.61,0.69100442]
[1768358287851,5.93564086,145.66,145.63,0.69100442]
[1768358288218,6.03464086,145.66,145.63,0.69100442]
[1768358289230,5.93564086,145.65,145.63,0.69100442]
[1768358292746,0.099,145.66,145.63,0.69100442]
[1768358292936,5.93564086,145.65,145.63,0.69100442]
[1768358294546,5.93564086,145.65,145.62,6.86718857]
[1768358294547,6.05543078,145.65,145.62,0.69100442]
[1768358295659,5.93564086,145.65,145.62,0.69100442]
[1768358296046,5.93564086,145.64,145.61,0.69100442]
[1768358297144,5.93564086,145.64,145.62,0.69100442]
[1768358297827,6.03464086,145.65,145.62,0.69100442]
[1768358298229,0.11978992,145.64,145.61,6.8674632]
[1768358298622,0.0992079,145.63,145.61,6.74746328]
[1768358298851,5.93564086,145.62,145.58,6.86864299]
[1768358299036,5.93564086,145.61,145.57,6.86935779]
[1768358299236,5.93564086,145.61,145.57,7.53472299]
[1768358300238,5.93564086,145.61,145.58,0.6653652]
[1768358300545,5.93564086,145.61,145.58,7.53435911]
[1768358301059,6.86679904,145.63,145.58,7.53435911]
[1768358301228,5.93564086,145.61,145.58,7.53435911]
[1768358301756,6.86679904,145.63,145.58,7.53435911]
[1768358302051,5.93564086,145.61,145.58,7.53435911]
[1768358306536,6.86679904,145.63,145.58,7.53435911]
[1768358306734,5.93564086,145.61,145.58,7.53435911]
[1768358309453,5.93564086,145.6,145.58,7.53435911]
[1768358311265,6.86679904,145.63,145.58,7.53435911]
[1768358311439,5.93564086,145.6,145.58,7.53435911]
[1768358312762,5.93564086,145.6,145.57,7.53471327]
[1768358313061,5.93564086,145.59,145.57,7.53471327]
[1768358313255,5.90564087,145.59,145.57,7.53471327]
[1768358314970,5.87564088,145.59,145.57,6.86934807]
[1768358315148,5.93564086,145.59,145.58,0.69634895]
[1768358315347,5.93564086,145.6,145.58,0.69634895]
[1768358316370,6.86693162,145.63,145.58,0.69634895]
[1768358316666,5.93564086,145.6,145.58,0.69634895]
[1768358316842,6.86693162,145.63,145.58,0.69634895]
[1768358317041,5.93564086,145.6,145.58,0.69634895]
[1768358318042,5.93564086,145.6,145.58,7.5654218]
[1768358318866,5.93564086,145.6,145.58,0.69634895]
[1768358321067,5.93564086,145.59,145.56,6.86988847]
[1768358321245,5.93564086,145.59,145.55,17.17551048]
[1768358321246,5.93564086,145.59,145.57,6.86947938]
[1768358321442,5.93564086,145.6,145.57,6.86947938]
[1768358322349,0.1,145.68,145.6,6.6801107]
[1768358322563,0.1,145.68,145.61,18.45564086]
[1768358322564,6.03564086,145.68,145.61,18.45564086]
[1768358322765,0.70754204,145.66,145.61,22.89769205]
[1768358322946,0.70754204,145.66,145.61,28.83333291]
[1768358323146,0.70754204,145.66,145.62,0.69634895]
[1768358323363,5.93564086,145.66,145.62,0.69634895]
[1768358323773,0.70754204,145.67,145.64,0.69634895]
[1768358325575,0.70754204,145.67,145.64,7.56242828]
[1768358326852,0.70754204,145.67,145.64,6.86607933]
[1768358327887,0.80754204,145.68,145.65,6.63198981]
[1768358337494,0.80754204,145.68,145.65,5.93564086]
[1768358337673,0.80754204,145.68,145.65,6.63198981]
[1768358338781,13.32754204,145.68,145.65,6.63198981]
[1768358340684,13.32754204,145.68,145.65,13.49772749]
[1768358341571,13.32754204,145.68,145.66,0.69634895]
[1768358341572,12.62,145.68,145.66,0.69634895]
[1768358341769,0.70754204,145.7,145.67,6.63198981]
[1768358342194,0.80754204,145.72,145.69,6.63198981]
[1768358343370,0.80754204,145.72,145.69,4.49024962]
[1768358345282,0.80754204,145.72,145.69,0.69634895]
[1768358348313,0.80754204,145.72,145.65,4.47788409]
[1768358348314,0.72322149,145.71,145.65,4.47788409]
[1768358348505,0.72322149,145.71,145.65,0.68398342]
[1768358349095,0.72322149,145.69,145.65,7.54949555]
[1768358349898,0.72322149,145.69,145.65,0.68398342]
[1768358350102,0.72322149,145.69,145.64,0.68398342]
[1768358351403,0.72322149,145.67,145.63,0.68398342]
[1768358351590,0.72322149,145.65,145.62,0.68398342]
[1768358351913,0.72322149,145.65,145.61,0.68398342]
[1768358352079,0.72322149,145.64,145.61,0.68398342]
[1768358356776,0.72322149,145.66,145.63,0.68398342]
[1768358367906,17.01528209,145.67,145.64,0.71710782]
[1768358368093,13.22138142,145.67,145.64,0.71710782]
[1768358369185,4.49528209,145.69,145.64,0.71710782]
[1768358369806,0.70138142,145.69,145.65,0.71710782]
[1768358370310,17.01528209,145.7,145.65,0.71710782]
[1768358370711,17.01528209,145.7,145.66,7.58241057]
[1768358371018,17.01528209,145.7,145.66,0.71710782]
[1768358371516,0.70138142,145.69,145.66,0.71710782]
[1768358372794,0.70138142,145.68,145.65,7.58268409]
[1768358374916,4.49528209,145.68,145.65,0.71710782]
[1768358377814,0.6956331,145.67,145.64,0.6688331]
[1768358378021,0.6956331,145.65,145.62,0.6688331]
[1768358378333,4.48953377,145.65,145.62,0.6688331]
[1768358378698,0.6956331,145.65,145.62,0.6688331]
[1768358378915,4.48953377,145.65,145.62,0.6688331]
[1768358379293,0.6956331,145.65,145.62,0.6688331]
[1768358380127,4.48953377,145.63,145.59,0.6688331]
[1768358380302,0.6956331,145.63,145.58,6.86876793]
[1768358380504,0.6956331,145.62,145.58,7.53760103]
[1768358380720,0.6956331,145.62,145.58,11.3315017]
[1768358380903,0.6956331,145.62,145.59,0.6688331]
[1768358386028,3.79390067,145.63,145.59,0.6688331]
[1768358386734,11.35608556,145.64,145.6,0.6688331]
[1768358387334,4.48953377,145.64,145.6,0.6688331]
[1768358387520,0.6956331,145.64,145.6,0.6688331]
[1768358390829,0.6956331,145.64,145.61,0.6688331]
[1768358391932,10.65987687,145.65,145.61,0.6688331]
[1768358392716,11.35550997,145.65,145.61,0.6688331]
[1768358394135,11.35550997,145.65,145.6,7.53682847]
[1768358394136,0.6956331,145.64,145.6,7.53682847]
[1768358394835,0.66563311,145.64,145.61,0.6688331]
[1768358398841,0.6956331,145.63,145.58,0.6688331]
[1768358399025,19.38632707,145.64,145.56,0.6688331]
[1768358399340,3.79390067,145.6,145.57,0.6688331]
[1768358399829,3.76390068,145.6,145.57,0.6688331]
[1768358403436,5.93941266,145.6,145.57,0.6688331]
[1768358404126,0.6956331,145.61,145.57,0.6688331]
[1768358404527,12.80677072,145.62,145.57,0.6688331]
[1768358404727,6.63504576,145.61,145.57,0.6688331]
[1768358406039,0.6956331,145.61,145.57,0.6688331]
[1768358406248,6.63504576,145.61,145.57,0.6688331]
[1768358408931,6.63504576,145.61,145.58,0.71753621]
[1768358410646,6.86735806,145.62,145.58,0.71753621]
[1768358410837,7.57410023,145.63,145.59,0.71753621]
[1768358411033,0.70704555,145.63,145.59,0.71753621]
[1768358412333,13.51243909,145.65,145.6,0.71753621]
[1768358412745,6.64645821,145.65,145.6,0.71753621]
[1768358412949,5.93941266,145.65,145.6,0.71753621]
[1768358413153,6.64645821,145.63,145.59,0.71753621]
[1768358413340,5.93941266,145.65,145.6,0.71753621]
[1768358413650,13.51191517,145.66,145.61,0.71753621]
[1768358414261,13.51191517,145.66,145.62,0.71753621]
[1768358414552,12.52,145.67,145.62,0.71753621]
[1768358414553,7.57188377,145.67,145.62,0.71753621]
[1768358414855,6.64645821,145.67,145.62,0.71753621]
[1768358415034,0.70704555,145.7,145.64,0.71753621]
[1768358415238,6.64645821,145.69,145.64,0.71753621]
[1768358415445,5.98619795,145.67,145.64,0.71753621]
[1768358415642,0.04678529,145.67,145.64,0.71753621]
[1768358416034,5.98619795,145.67,145.64,0.71753621]
[1768358417157,12.85104429,145.67,145.64,0.71753621]
[1768358418645,5.98619795,145.67,145.64,0.71753621]
[1768358420953,12.85136896,145.67,145.64,0.71753621]
[1768358421252,5.93941266,145.66,145.63,0.68229524]
[1768358421459,6.59687209,145.66,145.63,0.68229524]
[1768358426263,6.59687209,145.64,145.61,0.68229524]
[1768358426464,13.46314571,145.64,145.61,0.68229524]
[1768358430265,0.65745943,145.63,145.61,0.68229524]
[1768358430442,0.65745943,145.63,145.6,0.68229524]
[1768358433660,7.52373305,145.64,145.6,0.68229524]
[1768358445475,0.69881834,145.63,145.6,0.68229524]
[1768358446658,13.50450462,145.64,145.6,0.68229524]
[1768358446856,0.69881834,145.64,145.61,0.70658919]
[1768358451165,13.50433808,145.65,145.61,0.70658919]
[1768358451370,0.69881834,145.65,145.61,0.70658919]
[1768358451877,7.56464809,145.65,145.61,0.70658919]
[1768358452173,0.69881834,145.64,145.61,0.70658919]
[1768358453155,0.69881834,145.63,145.6,0.70658919]
[1768358453579,13.50482159,145.64,145.6,0.70658919]
[1768358455281,0.69881834,145.64,145.61,0.70658919]
[1768358456968,7.56518859,145.64,145.61,0.70658919]
[1768358458384,0.69881834,145.63,145.59,13.51441421]
[1768358460868,0.69881834,145.63,145.6,0.70658919]
[1768358461063,7.56518859,145.64,145.6,0.70658919]
[1768358462296,0.69881834,145.61,145.57,13.87771944]
[1768358462491,5.93941266,145.59,145.54,4.37856106]
[1768358462671,5.93941266,145.57,145.52,26.03762226]
[1768358462870,5.90941267,145.57,145.53,6.87139168]
[1768358463073,5.93941266,145.58,145.53,6.87139168]
[1768358463763,5.93941266,145.58,145.53,7.57798087]
[1768358463964,5.93941266,145.58,145.54,0.70658919]
[1768358464161,5.93941266,145.58,145.55,0.70658919]
[1768358464362,5.93941266,145.59,145.55,7.57704512]
[1768358464568,5.93941266,145.59,145.55,0.70658919]
[1768358465375,3.80169396,145.59,145.54,6.87074945]
[1768358465598,3.80169396,145.55,145.51,0.68933161]
[1768358465888,3.80169396,145.53,145.51,0.68933161]
[1768358466884,3.80169396,145.53,145.5,0.68933161]
[1768358468298,6.87104802,145.54,145.5,0.68933161]
[1768358468500,3.80169396,145.55,145.52,0.68933161]
[1768358468703,3.80169396,145.54,145.52,0.68933161]
[1768358469575,3.80169396,145.53,145.5,0.68933161]
[1768358470278,3.80169396,145.54,145.5,0.68933161]
[1768358475104,6.87089861,145.55,145.5,0.68933161]
[1768358475309,3.80169396,145.54,145.5,0.68933161]
[1768358478998,6.87089861,145.55,145.5,0.68933161]
[1768358479205,10.67259257,145.55,145.5,0.68933161]
[1768358479501,3.80169396,145.55,145.51,0.65656596]
[1768358484009,10.67222148,145.55,145.51,0.65656596]
[1768358486815,3.80169396,145.55,145.51,0.65656596]
[1768358495722,6.87047063,145.56,145.51,0.65656596]
[1768358495933,3.80169396,145.58,145.54,0.65841001]
[1768358496224,10.67004693,145.6,145.56,0.65841001]
[1768358496597,3.80169396,145.6,145.56,0.65841001]
[1768358496796,3.80169396,145.61,145.56,0.65841001]
[1768358497315,6.86729562,145.62,145.58,0.65841001]
[1768358497531,10.66898958,145.62,145.58,0.65841001]
[1768358497734,6.86729562,145.62,145.58,0.65841001]
[1768358498095,10.66898958,145.62,145.58,0.65841001]
[1768358501533,3.80169396,145.6,145.58,0.65841001]
[1768358502411,0.7249948,145.64,145.56,17.17451799]
[1768358502613,3.80169396,145.61,145.56,20.97621195]
[1768358503141,3.80169396,145.62,145.58,0.65841001]
[1768358504817,3.80169396,145.61,145.58,0.65841001]
[1768358505135,4.51429355,145.6,145.56,7.52823455]
[1768358505431,4.51429355,145.6,145.57,0.65841001]
[1768358505627,4.51429355,145.6,145.58,0.65841001]
[1768358505628,3.80169396,145.6,145.58,0.65841001]
[1768358508112,3.80169396,145.61,145.58,0.65841001]
[1768358508732,6.96629222,145.62,145.58,0.65841001]
[1768358508927,3.80169396,145.61,145.58,0.65841001]
[1768358509129,6.96629222,145.62,145.58,0.65841001]
[1768358509329,3.9006991,145.62,145.58,0.65841001]
[1768358509534,3.80169396,145.61,145.58,0.65841001]
[1768358509920,17.16654065,145.64,145.59,0.65841001]
[1768358509921,7.59131968,145.64,145.59,0.65841001]
[1768358510121,3.80169396,145.62,145.59,0.65841001]
[1768358510942,3.80169396,145.61,145.59,0.65841001]
[1768358513031,3.80169396,145.62,145.59,0.65841001]
[1768358515822,7.5914973,145.64,145.59,0.65841001]
[1768358516030,3.80169396,145.62,145.59,0.65841001]
[1768358517633,3.80169396,145.62,145.6,0.65841001]
[1768358519855,3.80169396,145.62,145.6,0.59841001]
[1768358520352,0.15840514,145.63,145.6,0.59841001]
[1768358520353,3.80169396,145.63,145.6,0.59841001]
[1768358520864,3.80169396,145.62,145.6,0.59841001]
[1768358521154,3.07669396,145.62,145.58,35.58890883]
[1768358521330,3.80169396,145.63,145.59,6.86849705]
[1768358521729,4.52668876,145.62,145.58,28.72]
[1768358521952,3.80169396,145.61,145.59,0.65841001]
[1768358522451,4.52668876,145.62,145.59,0.65841001]
[1768358523852,11.39391831,145.62,145.59,0.65841001]
[1768358524553,3.80169396,145.61,145.59,0.65841001]
[1768358526258,3.80169396,145.61,145.59,0.59841001]
[1768358527451,6.6629966,145.62,145.59,0.59841001]
[1768358528035,6.65732836,145.63,145.59,6.86853629]
[1768358528349,6.65732836,145.63,145.59,0.71114106]
[1768358528350,6.65732836,145.62,145.59,0.71114106]
[1768358528555,0.71932656,145.61,145.58,13.23114106]
[1768358528759,6.65732836,145.6,145.57,0.71114106]
[1768358528954,6.65732836,145.58,145.55,16.91114106]
[1768358529162,5.9380018,145.57,145.54,0.71114106]
[1768358529749,6.65732836,145.6,145.56,0.71114106]
[1768358530061,0.71932656,145.61,145.57,0.71114106]
[1768358530244,6.65732836,145.61,145.57,7.58052347]
[1768358530749,6.65732836,145.61,145.58,0.71114106]
[1768358531567,0.71932656,145.6,145.57,7.58052347]
[1768358532855,0.71932656,145.6,145.56,12.52]
[1768358532856,0.71932656,145.59,145.56,13.23114106]
[1768358533056,5.9380018,145.6,145.54,7.58191685]
[1768358533057,6.65732836,145.58,145.54,7.58191685]
[1768358534664,6.65732836,145.57,145.54,0.71114106]
[1768358535161,0.71932656,145.57,145.54,0.71114106]
[1768358540576,0.71932656,145.57,145.54,7.58202988]
[1768358540871,6.61528271,145.6,145.55,0.70317381]
[1768358541180,0.67728091,145.59,145.55,0.70317381]
[1768358542373,0.67728091,145.59,145.56,7.57319304]
[1768358544682,0.67728091,145.58,145.55,7.5735023]
[1768358544971,0.67728091,145.58,145.55,6.87032849]
[1768358546470,6.61528271,145.58,145.55,0.70317381]
[1768358546675,0.67728091,145.57,145.54,20.09413711]
[1768358547364,0.67728091,145.56,145.53,20.0945071]
[1768358547562,0.64728092,145.56,145.53,20.0945071]
[1768358547767,0.64728092,145.56,145.52,14.25503418]
[1768358547969,6.58528272,145.56,145.52,26.77503418]
[1768358548984,6.55528273,145.56,145.53,0.70317381]
[1768358550773,0.61728093,145.56,145.53,0.70317381]
[1768358553371,0.61728093,145.56,145.53,7.57459221]
[1768358555481,0.68923462,145.54,145.51,7.57532119]
[1768358556163,0.68923462,145.54,145.51,0.70337121]
[1768358558590,5.9380018,145.55,145.51,0.70337121]
[1768358559169,6.87009857,145.56,145.51,0.70337121]
[1768358559170,5.9380018,145.54,145.51,0.70337121]
[1768358559380,5.9380018,145.53,145.49,7.77661854]
[1768358559584,5.9380018,145.52,145.49,20.29661854]
[1768358559885,5.9380018,145.52,145.49,0.2]
[1768358560082,5.9380018,145.51,145.49,0.2]
[1768358560684,6.62723642,145.51,145.49,0.2]
[1768358561379,6.59723643,145.51,145.49,0.2]
[1768358562271,0.68923462,145.51,145.49,0.2]
[1768358568089,0.68923462,145.51,145.48,7.07378179]
[1768358570294,6.5587672,145.52,145.48,7.777153]
[1768358574301,6.5587672,145.52,145.49,0.70337121]
[1768358575192,0.6207654,145.52,145.49,0.70337121]
[1768358577490,6.5587672,145.52,145.49,0.70337121]
[1768358587321,4.42580628,145.52,145.49,0.70337121]
[1768358590224,0.6207654,145.53,145.49,6.87330924]
[1768358590435,0.61554774,145.53,145.5,0.69492274]
[1768358590616,0.61554774,145.53,145.49,7.56823198]
[1768358592226,0.61554774,145.53,145.5,0.69492274]
[1768358594531,4.42058862,145.53,145.5,0.69492274]
[1768358596926,0.61554774,145.53,145.5,0.69492274]
[1768358597114,4.42058862,145.53,145.5,0.69492274]
[1768358598129,4.30483091,145.53,145.5,0.69492274]
[1768358599410,3.80504088,145.53,145.49,7.53134945]
[1768358599632,3.80504088,145.53,145.49,6.87330924]
[1768358600022,4.31004857,145.53,145.5,0.65804021]
[1768358603515,11.18149636,145.53,145.5,0.65804021]
[1768358603741,0.50094761,145.51,145.48,7.73168286]
[1768358603924,0.47094762,145.51,145.48,7.73168286]
[1768358604126,3.80504088,145.52,145.48,7.73168286]
[1768358604326,3.80504088,145.52,145.49,0.65804021]
[1768358607038,3.90404088,145.52,145.49,0.65804021]
[1768358608939,3.80504088,145.52,145.49,0.65804021]
[1768358609344,0.47124762,145.51,145.48,0.85804021]
[1768358609522,0.47124762,145.51,145.48,0.2]
[1768358609848,0.47124762,145.51,145.48,0.85804021]
[1768358610146,0.10272247,145.5,145.47,6.37762307]
[1768358610320,4.07460325,145.49,145.47,0.51771677]
[1768358610836,0.26956237,145.49,145.47,0.51771677]
[1768358611565,4.07460325,145.49,145.47,0.51771677]
[1768358613140,10.94794216,145.49,145.47,0.51771677]
[1768358613936,7.14290128,145.49,145.47,0.51771677]
[1768358615527,0.26956237,145.49,145.47,0.51771677]
[1768358615729,10.84766778,145.5,145.47,0.51771677]
[1768358617227,7.0426269,145.5,145.47,0.51771677]
[1768358617652,10.84766778,145.5,145.47,0.51771677]